[Event "Titled Tuesday Blitz April 26 Late 2022"]
[White "Licznerski, Lukasz"]
[Black "Oro, Luis"]
[WhiteFideId "1179250"]
[BlackFideId "104094"]
[WhiteElo "2422"]
[BlackElo "2387"]
[Result "1-0"]
[Round "07"]
[TimeControl "180+1"]
[Date "2022.04.26"]
[WhiteClock "0:00:04"]
[BlackClock "0:00:05"]

1. e4 {[%clk 0:03:00]}  c5 {[%clk 0:02:58]} 2. Nf3 {[%clk 0:03:01]}  d6 {[%clk 0:02:58]} 3. d4 {[%clk 0:03:01]}  cxd4 {[%clk 0:02:59]} 4. Nxd4 {[%clk 0:03:02]}  Nf6 {[%clk 0:02:59]} 5. Nc3 {[%clk 0:03:03]}  a6 {[%clk 0:02:59]} 6. Be2 {[%clk 0:03:03]}  e5 {[%clk 0:02:58]} 7. Nf3 {[%clk 0:03:03]}  Be7 {[%clk 0:02:57]} 8. Bg5 {[%clk 0:02:50]}  b5 {[%clk 0:02:56]} 9. Bxf6 {[%clk 0:02:38]}  Bxf6 {[%clk 0:02:55]} 10. a4 {[%clk 0:02:38]}  b4 {[%clk 0:02:53]} 11. Nd5 {[%clk 0:02:39]}  Nc6 {[%clk 0:02:38]} 12. Nd2 {[%clk 0:02:21]}  Nd4 {[%clk 0:02:34]} 13. Nc4 {[%clk 0:02:17]}  Be6 {[%clk 0:02:31]} 14. Ncb6 {[%clk 0:02:07]}  Rb8 {[%clk 0:02:25]} 15. a5 {[%clk 0:02:07]}  O-O {[%clk 0:01:43]} 16. Bxa6 {[%clk 0:01:35]}  b3 {[%clk 0:01:34]} 17. cxb3 {[%clk 0:01:31]}  Bxd5 {[%clk 0:01:19]} 18. exd5 {[%clk 0:01:17]}  Bg5 {[%clk 0:01:17]} 19. O-O {[%clk 0:01:14]}  f5 {[%clk 0:01:13]} 20. Bc4 {[%clk 0:00:34]}  f4 {[%clk 0:01:09]} 21. f3 {[%clk 0:00:32]}  h5 {[%clk 0:01:06]} 22. Bd3 {[%clk 0:00:29]}  h4 {[%clk 0:01:03]} 23. h3 {[%clk 0:00:28]}  Rf7 {[%clk 0:00:42]} 24. Ra3 {[%clk 0:00:23]}  Rfb7 {[%clk 0:00:36]} 25. Nc4 {[%clk 0:00:21]}  Rxb3 {[%clk 0:00:35]} 26. Rxb3 {[%clk 0:00:18]}  Rxb3 {[%clk 0:00:35]} 27. a6 {[%clk 0:00:15]}  Qb8 {[%clk 0:00:34]} 28. Be4 {[%clk 0:00:09]}  Rb4 {[%clk 0:00:31]} 29. Qd3 {[%clk 0:00:06]}  Bd8 {[%clk 0:00:23]} 30. Ra1 {[%clk 0:00:04]}  Qa7 {[%clk 0:00:22]} 31. Kh1 {[%clk 0:00:03]}  Nb3 {[%clk 0:00:21]} 32. Ra3 {[%clk 0:00:03]}  Nc5 {[%clk 0:00:21]} 33. Bh7+ {[%clk 0:00:02]}  Kh8 {[%clk 0:00:18]} 34. Qc2 {[%clk 0:00:02]}  Rxc4 {[%clk 0:00:17]} 35. Qxc4 {[%clk 0:00:03]}  Kxh7 {[%clk 0:00:18]} 36. b4 {[%clk 0:00:04]}  Nd7 {[%clk 0:00:18]} 37. Qc6 {[%clk 0:00:01]}  Nf6 {[%clk 0:00:17]} 38. Qxd6 {[%clk 0:00:02]}  Bb6 {[%clk 0:00:17]} 39. Qxe5 {[%clk 0:00:02]}  Be3 {[%clk 0:00:17]} 40. Qf5+ {[%clk 0:00:02]}  Kh6 {[%clk 0:00:16]} 41. Rc3 {[%clk 0:00:02]}  Qd4 {[%clk 0:00:17]} 42. Qd3 {[%clk 0:00:01]}  Qb6 {[%clk 0:00:14]} 43. Rb3 {[%clk 0:00:01]}  Qd6 {[%clk 0:00:14]} 44. Rb1 {[%clk 0:00:01]}  Nxd5 {[%clk 0:00:14]} 45. Rd1 {[%clk 0:00:01]}  Qxb4 {[%clk 0:00:14]} 46. Qxd5 {[%clk 0:00:01]}  Qb2 {[%clk 0:00:13]} 47. Qd6+ {[%clk 0:00:02]}  Kh7 {[%clk 0:00:13]} 48. Qd3+ {[%clk 0:00:02]}  Kh6 {[%clk 0:00:13]} 49. Qd6+ {[%clk 0:00:01]}  Kh7 {[%clk 0:00:13]} 50. Qd5 {[%clk 0:00:02]}  Qf6 {[%clk 0:00:12]} 51. Qe4+ {[%clk 0:00:02]}  Kh6 {[%clk 0:00:12]} 52. Qd3 {[%clk 0:00:02]}  g6 {[%clk 0:00:11]} 53. Qf1 {[%clk 0:00:03]}  Qb6 {[%clk 0:00:11]} 54. Ra1 {[%clk 0:00:03]}  Qa7 {[%clk 0:00:11]} 55. Qc4 {[%clk 0:00:03]}  Bd4 {[%clk 0:00:11]} 56. Rd1 {[%clk 0:00:03]}  Be3 {[%clk 0:00:11]} 57. Qe6 {[%clk 0:00:04]}  Qc5 {[%clk 0:00:10]} 58. Qe8 {[%clk 0:00:03]}  Qa7 {[%clk 0:00:09]} 59. Qh8+ {[%clk 0:00:03]}  Kg5 {[%clk 0:00:09]} 60. Qd8+ {[%clk 0:00:04]}  Kh5 {[%clk 0:00:09]} 61. Rd5+ {[%clk 0:00:03]}  Kh6 {[%clk 0:00:07]} 62. Qxh4+ {[%clk 0:00:04]}  Kg7 {[%clk 0:00:07]} 63. Rd6 {[%clk 0:00:04]}  Qc5 {[%clk 0:00:05]} 64. Rd7+ {[%clk 0:00:04]}  Kf8 {[%clk 0:00:05]} 65. Qh8# {[%clk 0:00:04]} 1-0


[Site "https://www.chess.com"]

[Event "Titled Tuesday Blitz April 26 Late 2022"]
[White "Lin, Dachey"]
[Black "Golubev, Mikhail"]
[WhiteFideId "2029650"]
[BlackFideId "14100983"]
[WhiteElo "2313"]
[BlackElo "2374"]
[Result "0-1"]
[Round "07"]
[TimeControl "180+1"]
[Date "2022.04.26"]
[WhiteClock "0:00:48"]
[BlackClock "0:00:06"]

1. Nc3 {[%clk 0:03:00]}  Nf6 {[%clk 0:02:56]} 2. e4 {[%clk 0:03:01]}  d5 {[%clk 0:02:54]} 3. e5 {[%clk 0:03:01]}  Nfd7 {[%clk 0:02:53]} 4. f4 {[%clk 0:03:01]}  c5 {[%clk 0:02:47]} 5. Nf3 {[%clk 0:03:02]}  Nc6 {[%clk 0:02:46]} 6. g3 {[%clk 0:03:02]}  e6 {[%clk 0:02:44]} 7. Bg2 {[%clk 0:02:54]}  a6 {[%clk 0:02:39]} 8. O-O {[%clk 0:02:54]}  b5 {[%clk 0:02:39]} 9. d3 {[%clk 0:02:54]}  Rb8 {[%clk 0:02:36]} 10. Ne2 {[%clk 0:02:51]}  b4 {[%clk 0:02:28]} 11. g4 {[%clk 0:02:46]}  Be7 {[%clk 0:02:19]} 12. Ng3 {[%clk 0:02:45]}  O-O {[%clk 0:02:14]} 13. Qe1 {[%clk 0:02:41]}  a5 {[%clk 0:01:55]} 14. f5 {[%clk 0:02:27]}  a4 {[%clk 0:01:15]} 15. Bf4 {[%clk 0:02:23]}  Qb6 {[%clk 0:00:59]} 16. Kh1 {[%clk 0:02:17]}  Ba6 {[%clk 0:00:59]} 17. g5 {[%clk 0:02:15]}  g6 {[%clk 0:00:52]} 18. f6 {[%clk 0:02:11]}  Bd8 {[%clk 0:00:49]} 19. h4 {[%clk 0:02:11]}  Bc7 {[%clk 0:00:33]} 20. h5 {[%clk 0:02:05]}  c4 {[%clk 0:00:33]} 21. d4 {[%clk 0:02:04]}  Nxd4 {[%clk 0:00:31]} 22. Be3 {[%clk 0:01:50]}  Nxf3 {[%clk 0:00:31]} 23. Bxb6 {[%clk 0:01:51]}  Nxe1 {[%clk 0:00:31]} 24. Bxc7 {[%clk 0:01:51]}  Nxg2 {[%clk 0:00:28]} 25. Kxg2 {[%clk 0:01:38]}  Rb7 {[%clk 0:00:27]} 26. Bd6 {[%clk 0:01:38]}  Rc8 {[%clk 0:00:27]} 27. hxg6 {[%clk 0:01:37]}  fxg6 {[%clk 0:00:24]} 28. Rf4 {[%clk 0:01:29]}  Nc5 {[%clk 0:00:23]} 29. Raf1 {[%clk 0:01:26]}  Rf7 {[%clk 0:00:23]} 30. Rh1 {[%clk 0:01:24]}  Bb7 {[%clk 0:00:22]} 31. Rd4 {[%clk 0:01:23]}  b3 {[%clk 0:00:20]} 32. axb3 {[%clk 0:01:22]}  cxb3 {[%clk 0:00:18]} 33. c3 {[%clk 0:01:23]}  a3 {[%clk 0:00:17]} 34. bxa3 {[%clk 0:01:23]}  Ne4 {[%clk 0:00:16]} 35. Bb4 {[%clk 0:01:18]}  Nxc3 {[%clk 0:00:15]} 36. Ne2 {[%clk 0:01:11]}  Nxe2 {[%clk 0:00:13]} 37. Rd2 {[%clk 0:01:11]}  d4+ {[%clk 0:00:12]} 38. Kh2 {[%clk 0:01:10]}  Bxh1 {[%clk 0:00:13]} 39. Kxh1 {[%clk 0:01:10]}  Ng3+ {[%clk 0:00:12]} 40. Kg2 {[%clk 0:01:10]}  Nf5 {[%clk 0:00:13]} 41. Kf3 {[%clk 0:01:09]}  Rfc7 {[%clk 0:00:13]} 42. Rh2 {[%clk 0:01:07]}  Rc3+ {[%clk 0:00:12]} 43. Ke4 {[%clk 0:01:07]}  Re3+ {[%clk 0:00:11]} 44. Kf4 {[%clk 0:01:07]}  Rd3 {[%clk 0:00:11]} 45. a4 {[%clk 0:01:06]}  Rb8 {[%clk 0:00:08]} 46. Ba3 {[%clk 0:01:04]}  Rd1 {[%clk 0:00:08]} 47. a5 {[%clk 0:01:00]}  Ra1 {[%clk 0:00:07]} 48. Bb2 {[%clk 0:00:50]}  Ra2 {[%clk 0:00:06]} 49. Ke4 {[%clk 0:00:46]}  Rxa5 {[%clk 0:00:06]} 50. Rh1 {[%clk 0:00:45]}  Ra2 {[%clk 0:00:06]} 51. Rb1 {[%clk 0:00:46]}  Rd8 {[%clk 0:00:06]} 52. Bc1 {[%clk 0:00:46]}  d3 {[%clk 0:00:05]} 53. Rxb3 {[%clk 0:00:47]}  d2 {[%clk 0:00:06]} 54. Bxd2 {[%clk 0:00:47]}  Raxd2 {[%clk 0:00:06]} 55. Rb7 {[%clk 0:00:47]}  R8d4+ {[%clk 0:00:05]} 56. Kf3 {[%clk 0:00:48]}  R4d3+ {[%clk 0:00:06]} 57. Kg4 {[%clk 0:00:48]}  Rg3+ {[%clk 0:00:06]} 58. Kf4 {[%clk 0:00:48]}  Rd4# {[%clk 0:00:06]} 0-1


[Site "https://www.chess.com"]

[Event "Titled Tuesday Blitz April 26 Late 2022"]
[White "Makarian, Rudik"]
[Black "Moraes, Nelson da Silva"]
[WhiteFideId "44105681"]
[BlackFideId "2140772"]
[WhiteElo "2388"]
[BlackElo "2123"]
[Result "1-0"]
[Round "07"]
[TimeControl "180+1"]
[Date "2022.04.26"]
[WhiteClock "0:01:16"]
[BlackClock "0:01:25"]

1. d3 {[%clk 0:02:40]}  d5 {[%clk 0:02:59]} 2. f4 {[%clk 0:02:39]}  c5 {[%clk 0:02:58]} 3. Nf3 {[%clk 0:02:39]}  Nc6 {[%clk 0:02:59]} 4. g3 {[%clk 0:02:39]}  Nf6 {[%clk 0:02:55]} 5. Bg2 {[%clk 0:02:39]}  e6 {[%clk 0:02:51]} 6. O-O {[%clk 0:02:38]}  Bd6 {[%clk 0:02:51]} 7. Nc3 {[%clk 0:02:38]}  O-O {[%clk 0:02:51]} 8. e4 {[%clk 0:02:38]}  dxe4 {[%clk 0:02:41]} 9. Nxe4 {[%clk 0:02:35]}  Nxe4 {[%clk 0:02:41]} 10. dxe4 {[%clk 0:02:36]}  Bc7 {[%clk 0:02:37]} 11. Qe2 {[%clk 0:02:34]}  Nd4 {[%clk 0:02:37]} 12. Nxd4 {[%clk 0:02:33]}  Qxd4+ {[%clk 0:02:38]} 13. Kh1 {[%clk 0:02:25]}  Rd8 {[%clk 0:02:28]} 14. e5 {[%clk 0:02:17]}  Rb8 {[%clk 0:02:21]} 15. c3 {[%clk 0:02:07]}  Qd3 {[%clk 0:02:20]} 16. Qxd3 {[%clk 0:02:07]}  Rxd3 {[%clk 0:02:21]} 17. Be4 {[%clk 0:02:07]}  Rd8 {[%clk 0:02:18]} 18. Be3 {[%clk 0:02:08]}  b6 {[%clk 0:02:18]} 19. Rfd1 {[%clk 0:02:03]}  Ba6 {[%clk 0:02:18]} 20. Kg2 {[%clk 0:01:58]}  Rxd1 {[%clk 0:02:15]} 21. Rxd1 {[%clk 0:01:59]}  Rd8 {[%clk 0:02:15]} 22. Rxd8+ {[%clk 0:01:58]}  Bxd8 {[%clk 0:02:16]} 23. b3 {[%clk 0:01:55]}  h6 {[%clk 0:02:11]} 24. c4 {[%clk 0:01:50]}  Kf8 {[%clk 0:02:09]} 25. g4 {[%clk 0:01:49]}  Ke8 {[%clk 0:02:02]} 26. Kf3 {[%clk 0:01:47]}  Kd7 {[%clk 0:01:57]} 27. Kg3 {[%clk 0:01:41]}  Bc7 {[%clk 0:01:50]} 28. h4 {[%clk 0:01:39]}  Ke7 {[%clk 0:01:49]} 29. Kf3 {[%clk 0:01:33]}  f6 {[%clk 0:01:47]} 30. exf6+ {[%clk 0:01:33]}  Kxf6 {[%clk 0:01:40]} 31. g5+ {[%clk 0:01:20]}  hxg5 {[%clk 0:01:41]} 32. fxg5+ {[%clk 0:01:20]}  Kf7 {[%clk 0:01:37]} 33. h5 {[%clk 0:01:17]}  Be5 {[%clk 0:01:36]} 34. Bf4 {[%clk 0:01:15]}  Bxf4 {[%clk 0:01:25]} 35. Kxf4 {[%clk 0:01:16]} 1-0


[Site "https://www.chess.com"]

[Event "Titled Tuesday Blitz April 26 Late 2022"]
[White "Martin Barcelo, Carles"]
[Black "Smail, Benedict"]
[WhiteFideId "24561444"]
[BlackFideId "2050480"]
[WhiteElo "1875"]
[BlackElo "2070"]
[Result "1/2-1/2"]
[Round "07"]
[TimeControl "180+1"]
[Date "2022.04.26"]
[WhiteClock "0:01:28"]
[BlackClock "0:01:29"]

1. e4 {[%clk 0:03:00]}  c5 {[%clk 0:02:57]} 2. Nf3 {[%clk 0:03:00]}  d6 {[%clk 0:02:57]} 3. Bb5+ {[%clk 0:03:00]}  Bd7 {[%clk 0:02:57]} 4. Bxd7+ {[%clk 0:02:57]}  Qxd7 {[%clk 0:02:57]} 5. c4 {[%clk 0:02:55]}  g6 {[%clk 0:02:56]} 6. O-O {[%clk 0:02:54]}  Bg7 {[%clk 0:02:56]} 7. d4 {[%clk 0:02:52]}  cxd4 {[%clk 0:02:56]} 8. Nxd4 {[%clk 0:02:53]}  Nc6 {[%clk 0:02:56]} 9. Be3 {[%clk 0:02:53]}  Nf6 {[%clk 0:02:56]} 10. f3 {[%clk 0:02:51]}  a6 {[%clk 0:02:56]} 11. Nc3 {[%clk 0:02:51]}  Nxd4 {[%clk 0:02:56]} 12. Bxd4 {[%clk 0:02:46]}  b5 {[%clk 0:02:54]} 13. Qd3 {[%clk 0:02:32]}  bxc4 {[%clk 0:02:51]} 14. Qxc4 {[%clk 0:02:33]}  O-O {[%clk 0:02:50]} 15. Rfd1 {[%clk 0:02:22]}  Rfc8 {[%clk 0:02:50]} 16. Qd3 {[%clk 0:02:22]}  Qb7 {[%clk 0:02:38]} 17. b3 {[%clk 0:02:18]}  h5 {[%clk 0:02:35]} 18. Rac1 {[%clk 0:02:12]}  Rc6 {[%clk 0:02:27]} 19. Bxf6 {[%clk 0:02:11]}  Bxf6 {[%clk 0:02:25]} 20. Nd5 {[%clk 0:02:11]}  Rac8 {[%clk 0:02:00]} 21. Nxf6+ {[%clk 0:02:05]}  exf6 {[%clk 0:01:59]} 22. Rxc6 {[%clk 0:02:00]}  Rxc6 {[%clk 0:01:57]} 23. Qd5 {[%clk 0:01:57]}  Qb6+ {[%clk 0:01:51]} 24. Kh1 {[%clk 0:01:56]}  Rc2 {[%clk 0:01:45]} 25. h3 {[%clk 0:01:38]}  Rxa2 {[%clk 0:01:40]} 26. Qxd6 {[%clk 0:01:37]}  Qf2 {[%clk 0:01:36]} 27. Rg1 {[%clk 0:01:35]}  Kg7 {[%clk 0:01:36]} 28. e5 {[%clk 0:01:34]}  fxe5 {[%clk 0:01:31]} 29. Qxe5+ {[%clk 0:01:35]}  Kg8 {[%clk 0:01:31]} 30. Qe8+ {[%clk 0:01:34]}  Kg7 {[%clk 0:01:31]} 31. Qe5+ {[%clk 0:01:34]}  Kg8 {[%clk 0:01:30]} 32. Qe8+ {[%clk 0:01:27]}  Kg7 {[%clk 0:01:29]} 33. Qe5+ {[%clk 0:01:28]} 1/2-1/2


[Site "https://www.chess.com"]

[Event "Titled Tuesday Blitz April 26 Late 2022"]
[White "Martinez Reyes, Pedro Ramon"]
[Black "Zherebtsova, Alexandra"]
[WhiteFideId "3901807"]
[BlackFideId "24129518"]
[WhiteElo "2410"]
[BlackElo "2025"]
[Result "1-0"]
[Round "07"]
[TimeControl "180+1"]
[Date "2022.04.26"]
[WhiteClock "0:01:44"]
[BlackClock "0:00:04"]

1. f4 {[%clk 0:03:00]}  d5 {[%clk 0:02:47]} 2. Nf3 {[%clk 0:03:00]}  g6 {[%clk 0:02:34]} 3. e3 {[%clk 0:02:58]}  Bg7 {[%clk 0:02:33]} 4. d4 {[%clk 0:02:59]}  Nh6 {[%clk 0:02:30]} 5. Be2 {[%clk 0:02:58]}  O-O {[%clk 0:02:28]} 6. O-O {[%clk 0:02:59]}  Nd7 {[%clk 0:02:27]} 7. a4 {[%clk 0:02:58]}  Nf6 {[%clk 0:02:26]} 8. Ne5 {[%clk 0:02:57]}  Nf5 {[%clk 0:02:17]} 9. c4 {[%clk 0:02:50]}  c6 {[%clk 0:02:16]} 10. Nc3 {[%clk 0:02:50]}  Ne4 {[%clk 0:01:40]} 11. Nxe4 {[%clk 0:02:49]}  dxe4 {[%clk 0:01:40]} 12. Bd2 {[%clk 0:02:49]}  f6 {[%clk 0:01:37]} 13. Ng4 {[%clk 0:02:48]}  Nd6 {[%clk 0:01:30]} 14. c5 {[%clk 0:02:47]}  Nf7 {[%clk 0:01:21]} 15. Nf2 {[%clk 0:02:45]}  f5 {[%clk 0:01:21]} 16. b4 {[%clk 0:02:38]}  Be6 {[%clk 0:01:20]} 17. b5 {[%clk 0:02:38]}  Bd5 {[%clk 0:01:14]} 18. g4 {[%clk 0:02:35]}  h6 {[%clk 0:00:57]} 19. gxf5 {[%clk 0:02:33]}  gxf5 {[%clk 0:00:56]} 20. Kh1 {[%clk 0:02:34]}  Kh8 {[%clk 0:00:54]} 21. Rg1 {[%clk 0:02:34]}  Rg8 {[%clk 0:00:53]} 22. Bh5 {[%clk 0:02:35]}  Qf8 {[%clk 0:00:51]} 23. Rg6 {[%clk 0:02:33]}  Nd8 {[%clk 0:00:45]} 24. Qe2 {[%clk 0:02:33]}  Ne6 {[%clk 0:00:25]} 25. Rag1 {[%clk 0:02:31]}  Nxd4 {[%clk 0:00:23]} 26. exd4 {[%clk 0:02:30]}  e3+ {[%clk 0:00:23]} 27. Bf3 {[%clk 0:02:28]}  Bxf3+ {[%clk 0:00:19]} 28. Qxf3 {[%clk 0:02:28]}  exd2 {[%clk 0:00:19]} 29. Qe3 {[%clk 0:02:23]}  Rd8 {[%clk 0:00:18]} 30. Qe2 {[%clk 0:02:21]}  Rxd4 {[%clk 0:00:16]} 31. Nh3 {[%clk 0:02:14]}  Qd8 {[%clk 0:00:13]} 32. Qe6 {[%clk 0:02:02]}  Qd5+ {[%clk 0:00:08]} 33. Qxd5 {[%clk 0:02:02]}  Rxd5 {[%clk 0:00:07]} 34. Nf2 {[%clk 0:02:02]}  e5 {[%clk 0:00:04]} 35. fxe5 {[%clk 0:01:59]}  Rxe5 {[%clk 0:00:04]} 36. Nd1 {[%clk 0:01:48]}  Re1 {[%clk 0:00:04]} 37. h4 {[%clk 0:01:49]}  Rxg1+ {[%clk 0:00:04]} 38. Rxg1 {[%clk 0:01:50]}  Re8 {[%clk 0:00:04]} 39. bxc6 {[%clk 0:01:47]}  Re1 {[%clk 0:00:04]} 40. cxb7 {[%clk 0:01:46]}  Be5 {[%clk 0:00:04]} 41. Kg2 {[%clk 0:01:44]}  Kg7 {[%clk 0:00:04]} 42. Kf2+ {[%clk 0:01:44]} 1-0


[Site "https://www.chess.com"]

[Event "Titled Tuesday Blitz April 26 Late 2022"]
[White "Mayaud, Raphael"]
[Black "Ferreira, Vitor Hugo Vieira"]
[WhiteFideId "627151"]
[BlackFideId "2119765"]
[WhiteElo "2191"]
[BlackElo "2165"]
[Result "1-0"]
[Round "07"]
[TimeControl "180+1"]
[Date "2022.04.26"]
[WhiteClock "0:02:02"]
[BlackClock "0:01:49"]

1. d4 {[%clk 0:03:00]}  Nf6 {[%clk 0:02:56]} 2. Bg5 {[%clk 0:03:00]}  d5 {[%clk 0:02:53]} 3. Bxf6 {[%clk 0:03:00]}  exf6 {[%clk 0:02:53]} 4. e3 {[%clk 0:03:00]}  Bd6 {[%clk 0:02:51]} 5. g3 {[%clk 0:03:00]}  O-O {[%clk 0:02:50]} 6. Bg2 {[%clk 0:03:01]}  c6 {[%clk 0:02:51]} 7. Ne2 {[%clk 0:03:01]}  f5 {[%clk 0:02:51]} 8. Nd2 {[%clk 0:02:58]}  Nd7 {[%clk 0:02:51]} 9. c4 {[%clk 0:02:59]}  Nf6 {[%clk 0:02:48]} 10. Nc3 {[%clk 0:02:56]}  dxc4 {[%clk 0:02:48]} 11. Nxc4 {[%clk 0:02:56]}  Bc7 {[%clk 0:02:48]} 12. O-O {[%clk 0:02:55]}  Re8 {[%clk 0:02:48]} 13. d5 {[%clk 0:02:52]}  cxd5 {[%clk 0:02:46]} 14. Nxd5 {[%clk 0:02:52]}  Nxd5 {[%clk 0:02:45]} 15. Qxd5 {[%clk 0:02:52]}  Be6 {[%clk 0:02:43]} 16. Qxd8 {[%clk 0:02:49]}  Raxd8 {[%clk 0:02:43]} 17. b3 {[%clk 0:02:49]}  b5 {[%clk 0:02:38]} 18. Na3 {[%clk 0:02:39]}  a6 {[%clk 0:02:30]} 19. Rfd1 {[%clk 0:02:39]}  Be5 {[%clk 0:02:29]} 20. Rab1 {[%clk 0:02:37]}  g5 {[%clk 0:02:17]} 21. Bb7 {[%clk 0:02:30]}  Rb8 {[%clk 0:02:17]} 22. Bxa6 {[%clk 0:02:21]}  Rb6 {[%clk 0:02:07]} 23. Bxb5 {[%clk 0:02:20]}  Ra8 {[%clk 0:02:07]} 24. Ba4 {[%clk 0:02:20]}  Bd6 {[%clk 0:01:56]} 25. Nb5 {[%clk 0:02:15]}  Bb8 {[%clk 0:01:51]} 26. Nd4 {[%clk 0:02:14]}  Bd5 {[%clk 0:01:49]} 27. Nxf5 {[%clk 0:02:11]}  Be4 {[%clk 0:01:49]} 28. Rd8# {[%clk 0:02:02]} 1-0


[Site "https://www.chess.com"]

[Event "Titled Tuesday Blitz April 26 Late 2022"]
[White "Meduri, Aakaash"]
[Black "Barria Zuniga, Daniel"]
[WhiteFideId "2032252"]
[BlackFideId "3400816"]
[WhiteElo "2096"]
[BlackElo "2414"]
[Result "0-1"]
[Round "07"]
[TimeControl "180+1"]
[Date "2022.04.26"]
[WhiteClock "0:00:11"]
[BlackClock "0:00:07"]

1. d4 {[%clk 0:03:00]}  d5 {[%clk 0:02:59]} 2. Bf4 {[%clk 0:03:01]}  c6 {[%clk 0:02:58]} 3. e3 {[%clk 0:03:01]}  Qb6 {[%clk 0:02:58]} 4. Qc1 {[%clk 0:03:02]}  Nf6 {[%clk 0:02:58]} 5. Nd2 {[%clk 0:03:02]}  Bg4 {[%clk 0:02:55]} 6. h3 {[%clk 0:03:01]}  Bh5 {[%clk 0:02:55]} 7. Ngf3 {[%clk 0:03:02]}  e6 {[%clk 0:02:55]} 8. Ne5 {[%clk 0:03:02]}  c5 {[%clk 0:02:54]} 9. c3 {[%clk 0:03:02]}  Nc6 {[%clk 0:02:53]} 10. Bd3 {[%clk 0:03:00]}  Rc8 {[%clk 0:02:50]} 11. Qb1 {[%clk 0:03:00]}  Be7 {[%clk 0:02:46]} 12. O-O {[%clk 0:03:00]}  Bg6 {[%clk 0:02:46]} 13. Nxg6 {[%clk 0:02:55]}  hxg6 {[%clk 0:02:46]} 14. Nf3 {[%clk 0:02:53]}  O-O {[%clk 0:02:43]} 15. Bh2 {[%clk 0:02:49]}  a6 {[%clk 0:02:33]} 16. Re1 {[%clk 0:02:43]}  Qd8 {[%clk 0:02:33]} 17. Ne5 {[%clk 0:02:42]}  Nxe5 {[%clk 0:02:31]} 18. Bxe5 {[%clk 0:02:41]}  Bd6 {[%clk 0:02:22]} 19. f4 {[%clk 0:02:37]}  Bxe5 {[%clk 0:02:21]} 20. fxe5 {[%clk 0:02:37]}  Nd7 {[%clk 0:02:20]} 21. Rf1 {[%clk 0:02:37]}  Qg5 {[%clk 0:02:14]} 22. Qe1 {[%clk 0:02:34]}  f5 {[%clk 0:01:59]} 23. Rf4 {[%clk 0:02:27]}  Kf7 {[%clk 0:01:40]} 24. Qd1 {[%clk 0:02:12]}  cxd4 {[%clk 0:01:31]} 25. cxd4 {[%clk 0:02:12]}  Rc7 {[%clk 0:01:32]} 26. Qb3 {[%clk 0:02:07]}  Rfc8 {[%clk 0:01:31]} 27. Raf1 {[%clk 0:02:08]}  Kg8 {[%clk 0:00:52]} 28. Kh2 {[%clk 0:01:46]}  Nb8 {[%clk 0:00:44]} 29. Qd1 {[%clk 0:01:31]}  Nc6 {[%clk 0:00:40]} 30. Qd2 {[%clk 0:01:18]}  Nd8 {[%clk 0:00:33]} 31. g4 {[%clk 0:01:15]}  Nf7 {[%clk 0:00:27]} 32. Rg1 {[%clk 0:01:14]}  Qh6 {[%clk 0:00:26]} 33. gxf5 {[%clk 0:01:06]}  gxf5 {[%clk 0:00:25]} 34. Rf2 {[%clk 0:01:02]}  Ng5 {[%clk 0:00:23]} 35. Rg3 {[%clk 0:01:02]}  g6 {[%clk 0:00:13]} 36. e4 {[%clk 0:01:02]}  dxe4 {[%clk 0:00:08]} 37. Rfg2 {[%clk 0:00:47]}  Nf3+ {[%clk 0:00:07]} 38. Rxf3 {[%clk 0:00:46]}  Qxd2 {[%clk 0:00:08]} 39. Rxd2 {[%clk 0:00:46]}  exf3 {[%clk 0:00:06]} 40. Kg3 {[%clk 0:00:47]}  Kf7 {[%clk 0:00:06]} 41. Kxf3 {[%clk 0:00:48]}  Rh8 {[%clk 0:00:07]} 42. Kg3 {[%clk 0:00:47]}  g5 {[%clk 0:00:07]} 43. d5 {[%clk 0:00:46]}  Rh4 {[%clk 0:00:07]} 44. d6 {[%clk 0:00:41]}  Rd7 {[%clk 0:00:07]} 45. b3 {[%clk 0:00:36]}  Rd4 {[%clk 0:00:06]} 46. Kf3 {[%clk 0:00:34]}  Rd5 {[%clk 0:00:06]} 47. a3 {[%clk 0:00:27]}  Rxe5 {[%clk 0:00:06]} 48. Bc4 {[%clk 0:00:28]}  Kf6 {[%clk 0:00:03]} 49. Rd1 {[%clk 0:00:26]}  b5 {[%clk 0:00:03]} 50. Bf1 {[%clk 0:00:24]}  Rd5 {[%clk 0:00:04]} 51. Rc1 {[%clk 0:00:24]}  R7xd6 {[%clk 0:00:04]} 52. a4 {[%clk 0:00:23]}  Rd3+ {[%clk 0:00:04]} 53. Bxd3 {[%clk 0:00:23]}  Rxd3+ {[%clk 0:00:05]} 54. Ke2 {[%clk 0:00:24]}  Rxb3 {[%clk 0:00:06]} 55. axb5 {[%clk 0:00:22]}  axb5 {[%clk 0:00:07]} 56. Rc5 {[%clk 0:00:22]}  Rxh3 {[%clk 0:00:06]} 57. Rxb5 {[%clk 0:00:23]}  g4 {[%clk 0:00:07]} 58. Kf2 {[%clk 0:00:23]}  Rd3 {[%clk 0:00:06]} 59. Ke2 {[%clk 0:00:23]}  Rd5 {[%clk 0:00:06]} 60. Rb8 {[%clk 0:00:24]}  Ke5 {[%clk 0:00:07]} 61. Rg8 {[%clk 0:00:24]}  Kf4 {[%clk 0:00:07]} 62. Kf2 {[%clk 0:00:24]}  e5 {[%clk 0:00:07]} 63. Ra8 {[%clk 0:00:23]}  Rd4 {[%clk 0:00:07]} 64. Ra3 {[%clk 0:00:22]}  e4 {[%clk 0:00:07]} 65. Ke2 {[%clk 0:00:22]}  Rd3 {[%clk 0:00:07]} 66. Ra1 {[%clk 0:00:22]}  Rf3 {[%clk 0:00:07]} 67. Rg1 {[%clk 0:00:22]}  g3 {[%clk 0:00:07]} 68. Rh1 {[%clk 0:00:21]}  Rf2+ {[%clk 0:00:07]} 69. Ke1 {[%clk 0:00:21]}  Kf3 {[%clk 0:00:07]} 70. Rh5 {[%clk 0:00:20]}  f4 {[%clk 0:00:07]} 71. Ra5 {[%clk 0:00:20]}  e3 {[%clk 0:00:07]} 72. Ra1 {[%clk 0:00:14]}  g2 {[%clk 0:00:07]} 73. Kd1 {[%clk 0:00:12]}  Rf1+ {[%clk 0:00:07]} 74. Kc2 {[%clk 0:00:11]}  Rxa1 {[%clk 0:00:07]} 0-1


[Site "https://www.chess.com"]